bitfinex-derivatives/quotes_SOLF0:USTF0_20250117
["timestamp","ask_amount","ask_price","bid_price","bid_amount"]
[1737109768647,3.0647,216.32,216.18,4.68]
[1737109769444,4.6261,216.22,216.18,4.68]
[1737109771455,177.003882,216.32,216.18,4.68]
[1737109771657,4.6265,216.2,216.18,4.68]
[1737109772357,4.6267,216.19,216.14,1.4657]
[1737109772651,18.6,216.3,216.14,1.4657]
[1737109772957,18.6,216.3,216.15,3.83992142]
[1737109773157,1.5319,216.29,216.14,1.4657]
[1737109773554,1.5319,216.29,216.12,1.4915]
[1737109773757,175.471082,216.29,216.13,3.84088472]
[1737109773953,4.6272,216.17,216.12,6.1195]
[1737109774150,4.6272,216.17,216.13,3.84103784]
[1737109774354,175.471082,216.29,216.12,4.628]
[1737109774558,160.039182,216.28,216.12,4.628]
[1737109774758,4.6275,216.16,216.12,4.628]
[1737109775355,4.6275,216.16,216.09,4.7]
[1737109775356,4.6275,216.16,216.11,4.6284]
[1737109775554,4.6275,216.16,216.12,3.8441422]
[1737109775755,4.6275,216.16,216.11,4.6284]
[1737109775955,4.6275,216.16,216.12,3.84404161]
[1737109776154,4.6275,216.16,216.11,4.6284]
[1737109776355,4.6275,216.16,216.12,3.84530902]
[1737109776555,4.6275,216.16,216.11,4.6284]
[1737109776755,4.6275,216.16,216.12,3.84506415]
[1737109776955,4.6275,216.16,216.11,4.6284]
[1737109777155,4.6275,216.16,216.12,3.84512665]
[1737109777358,4.6275,216.16,216.11,4.6284]
[1737109777558,4.6275,216.16,216.12,3.84640126]
[1737109777758,4.6275,216.16,216.11,4.6284]
[1737109777959,4.6275,216.16,216.12,3.84639002]
[1737109778159,4.6275,216.16,216.11,4.6284]
[1737109778359,4.6275,216.16,216.12,3.84744843]
[1737109778560,4.6275,216.16,216.11,4.6284]
[1737109778759,4.6276,216.15,216.12,3.84742914]
[1737109779059,19.72642279,216.27,216.1,4.6286]
[1737109779260,179.76560479,216.27,216.11,3.84782358]
[1737109779461,179.76560479,216.27,216.12,3.84782358]
[1737109779760,173.939182,216.27,216.1,4.6286]
[1737109779961,173.939182,216.27,216.11,3.84812011]
[1737109780161,4.6276,216.15,216.12,3.84812011]
[1737109780463,173.939182,216.27,216.1,4.6286]
[1737109780656,4.6276,216.15,216.11,3.84799942]
[1737109780859,4.6276,216.15,216.12,3.84799942]
[1737109781160,4.6276,216.15,216.11,4.6284]
[1737109781556,4.6276,216.15,216.1,4.6285]
[1737109781761,4.6276,216.15,216.11,3.84782289]
[1737109781956,4.6262,216.22,216.1,4.6285]
[1737109782157,13.9,216.26,216.11,3.84782836]
[1737109782365,13.9,216.26,216.1,4.6285]
[1737109782663,4.6277,216.15,216.11,3.84824773]
[1737109782958,4.6277,216.15,216.11,4.6284]
[1737109786265,4.6277,216.15,216.06,6.1817]
[1737109786559,4.6277,216.15,216.07,3.84832067]
[1737109786764,4.6277,216.15,216.09,4.6286]
[1737109786965,4.6277,216.15,216.1,3.84832067]
[1737109787164,4.6277,216.15,216.11,3.84832067]
[1737109787360,4.6277,216.15,216.06,6.1817]
[1737109787566,4.6277,216.15,216.07,3.84785228]
[1737109787770,4.6277,216.15,216.08,3.84785228]
[1737109787969,4.6277,216.15,216.09,3.84785228]
[1737109788265,4.6277,216.15,216.1,8.47645228]
[1737109788470,4.6277,216.15,216.11,3.84785228]
[1737109788666,4.6277,216.15,216.1,4.6286]
[1737109788969,4.6277,216.15,216.11,3.84758231]
[1737109789270,4.6277,216.15,216.1,4.6286]
[1737109789472,4.6277,216.15,216.11,3.84740606]
[1737109789770,4.6277,216.15,216.1,4.6286]
[1737109789969,4.6277,216.15,216.11,3.84740317]
[1737109790172,4.6277,216.15,216.1,4.6286]
[1737109790470,4.6277,216.15,216.11,3.84748772]
[1737109790670,4.6277,216.15,216.1,4.6286]
[1737109790870,4.6277,216.15,216.11,3.84748772]
[1737109791071,4.6277,216.15,216.11,4.6284]
[1737109792075,9.2505,216.26,216.06,6.1817]
[1737109792272,9.2505,216.26,216.07,3.84731254]
[1737109792572,9.2505,216.26,216.08,3.84731254]
[1737109792773,4.6269,216.18,216.15,4.6275]
[1737109793667,9.2505,216.26,216.06,6.1817]
[1737109793872,9.2505,216.26,216.07,3.84741595]
[1737109794074,9.2505,216.26,216.08,3.84741595]
[1737109794273,9.2505,216.26,216.09,3.84741595]
[1737109794475,9.2505,216.26,216.1,3.84741595]
[1737109794770,4.6269,216.19,216.15,4.6273]
[1737109794975,4.6269,216.19,216.06,6.1817]
[1737109795166,9.2505,216.26,216.07,3.84700204]
[1737109795367,4.6263,216.21,216.08,3.84700204]
[1737109795568,9.2505,216.26,216.15,4.6273]
[1737109796976,4.627,216.18,216.15,4.6273]
[1737109800076,4.68,216.28,216.06,6.1817]
[1737109800077,4.6262,216.22,216.2,4.6264]
[1737109801479,4.6262,216.22,216.18,4.6267]
[1737109801679,4.6262,216.22,216.07,9.2583]
[1737109801982,4.6262,216.22,216.08,3.84383879]
[1737109802186,4.6262,216.22,216.18,4.6267]
[1737109802479,1.5319,216.29,216.07,9.2583]
[1737109802687,194.0,216.28,216.08,3.84367388]
[1737109802884,194.0,216.28,216.09,3.84367388]
[1737109803083,4.6271,216.18,216.14,4.6277]
[1737109803887,4.6271,216.17,216.14,4.6277]
[1737109804581,194.0,216.28,216.1,4.68]
[1737109804785,207.9,216.28,216.08,4.68]
[1737109804987,207.9,216.28,216.09,3.8450605]
[1737109805185,207.9,216.28,216.11,4.6282]
[1737109805186,4.6277,216.15,216.11,4.6282]
[1737109805388,194.0,216.26,216.08,4.68]
[1737109805590,194.0,216.25,216.09,3.84530929]
[1737109805790,4.628,216.13,216.1,3.84530929]
[1737109805986,3.1236,216.24,216.08,4.68]
[1737109806186,3.1236,216.24,216.09,3.84691347]
[1737109806488,3.1236,216.24,216.06,6.1817]
[1737109806690,3.1236,216.24,216.07,3.84804145]
[1737109806892,3.1236,216.24,216.06,6.1817]
[1737109807086,4.6267,216.19,216.07,3.84851879]
[1737109807301,3.1236,216.24,216.08,3.84812078]
[1737109807489,163.162782,216.24,216.09,3.84812078]
[1737109807689,163.162782,216.24,216.06,6.1817]
[1737109807987,3.1236,216.24,216.07,3.84810568]
[1737109808189,3.1236,216.24,216.08,8.52810568]
[1737109808392,4.6273,216.17,216.09,3.84810568]
[1737109808690,4.6273,216.17,216.08,4.68]
[1737109808888,4.6273,216.17,216.12,4.628]
[1737109809391,3.1236,216.24,216.16,4.6271]
[1737109810287,4.6266,216.2,216.16,4.6271]
[1737109810887,4.6267,216.19,216.16,4.6271]
[1737109811794,4.6267,216.19,216.08,4.68]
[1737109812087,160.039182,216.27,216.09,3.84921875]
[1737109812293,160.039182,216.27,216.1,3.84921875]
[1737109812488,160.039182,216.27,216.08,4.68]
[1737109812489,4.6251,216.27,216.11,3.84921875]
[1737109812690,4.6251,216.27,216.12,3.84921875]
[1737109812887,4.6251,216.27,216.13,6.94681875]
[1737109813087,4.6251,216.27,216.14,5.28541875]
[1737109813293,2.9951,216.33,216.15,3.84921875]
[1737109813593,4.6252,216.26,216.21,4.6261]
[1737109814705,2.9951,216.33,216.17,4.7]
[1737109814902,8.81740547,216.33,216.17,4.7]
[1737109815302,4.6264,216.21,216.17,4.7]
[1737109816495,5.8236685,216.31,216.17,4.7]
[1737109816802,4.6258,216.24,216.19,4.6267]
[1737109817001,194.0,216.32,216.19,4.6267]
[1737109817302,194.0,216.32,216.17,4.7]
[1737109817501,194.0,216.32,216.18,3.84733453]
[1737109817695,194.0,216.32,216.19,3.84733453]
[1737109817895,194.0,216.32,216.16,4.7]
[1737109818096,194.0,216.32,216.17,3.84696917]
[1737109818297,194.0,216.32,216.18,3.84696917]
[1737109818503,2.9951,216.33,216.24,4.6254]
[1737109818803,1.4849,216.33,216.16,4.7]
[1737109819004,1.4849,216.33,216.17,3.84389445]
[1737109819303,4.6245,216.3,216.18,3.84389445]
[1737109819502,4.6245,216.3,216.19,3.84389445]
[1737109819694,1.4849,216.33,216.24,4.6254]
[1737109819895,4.6246,216.29,216.24,4.6254]
[1737109822909,1.4849,216.33,216.24,4.6254]
[1737109823301,1.4849,216.33,216.21,4.6261]
[1737109823507,4.6246,216.29,216.16,4.7]
[1737109823703,4.6246,216.29,216.17,3.83590998]
[1737109823906,1.4849,216.33,216.16,4.7]
[1737109823907,1.4849,216.33,216.23,4.6256]
[1737109824108,4.6251,216.27,216.16,4.7]
[1737109824300,1.4849,216.33,216.14,1.4362]
[1737109824500,1.4849,216.33,216.16,4.6272]
[1737109825106,4.6261,216.22,216.17,4.627]
[1737109828543,4.6263,216.21,216.17,4.627]
[1737109828740,13.9,216.31,216.14,1.4362]
[1737109828926,1.4248,216.3,216.13,3.0976]
[1737109829124,4.6254,216.25,216.13,3.0976]
[1737109829430,194.0,216.29,216.14,4.6276]
[1737109830223,4.6267,216.19,216.14,4.6276]
[1737109831122,4.6265,216.2,216.15,4.6275]
[1737109831315,194.0,216.29,216.15,4.6275]
[1737109832123,4.6267,216.19,216.15,4.6275]
[1737109833126,4.6272,216.17,216.1,6.1431]
[1737109833315,4.6272,216.17,216.11,3.84024366]
[1737109833519,194.0,216.29,216.12,3.8405104]
[1737109833721,4.6254,216.25,216.2,4.6263]
[1737109834313,4.6257,216.24,216.2,4.6263]
[1737109835218,4.6257,216.24,216.19,4.6266]
[1737109835818,194.0,216.29,216.15,4.6273]
[1737109836014,194.0,216.29,216.11,3.0293]
[1737109836217,4.627,216.18,216.12,3.83988154]
[1737109836524,4.627,216.18,216.13,4.6279]
[1737109837322,4.6272,216.17,216.13,4.6279]
[1737109837514,4.6272,216.17,216.11,7.6575]
[1737109837713,193.6272,216.28,216.11,3.0293]
[1737109837919,1.5395,216.27,216.11,3.0293]
[1737109838316,4.6271,216.18,216.13,4.6279]
[1737109838916,1.5395,216.27,216.13,4.6279]
[1737109839113,1.5395,216.27,216.11,4.6284]
[1737109839622,4.6274,216.16,216.11,4.6284]
[1737109839815,1.5395,216.27,216.09,4.6288]
[1737109840123,207.5272,216.26,216.1,3.84234216]
[1737109840322,207.5272,216.26,216.08,4.7]
[1737109840622,1.5198,216.25,216.12,4.6281]
[1737109840825,4.6273,216.17,216.12,4.6281]
[1737109841723,4.6283,216.12,216.05,4.5003]
[1737109842115,9.2521,216.22,216.05,4.5003]
[1737109842520,1.4962,216.21,216.05,4.5003]
[1737109842924,1.4962,216.21,216.07,4.6292]
[1737109843424,4.6277,216.14,216.04,4.6298]
[1737109843623,193.6272,216.19,215.92,3.0656]
[1737109843827,1.5526,216.13,215.93,8.58443389]
[1737109844016,4.6292,216.08,216.01,4.6304]
[1737109844221,1.5526,216.13,216.01,4.6304]
[1737109844817,4.6296,216.06,216.01,4.6304]
[1737109845015,4.6296,216.06,215.93,4.74]
[1737109845220,4.6296,216.06,215.94,3.84319331]
[1737109845420,4.6296,216.06,215.95,3.84319331]
[1737109845622,1.5526,216.13,215.96,3.84319331]
[1737109845818,1.5565,216.12,215.95,4.74]
[1737109846124,4.6303,216.02,215.97,4.6313]
[1737109848931,1.5565,216.12,215.94,4.74]
[1737109849128,4.6306,216.01,215.94,4.74]
[1737109849631,4.6306,216.01,215.96,4.6315]
[1737109850726,4.6307,216.0,215.95,4.6318]
[1737109853833,4.6307,216.0,215.94,4.632]
[1737109854036,1.5565,216.12,215.92,7.8056]
[1737109854234,1.5565,216.12,215.93,4.6321]
[1737109854434,1.5565,216.12,215.92,3.0656]
[1737109854635,4.6312,215.99,215.92,3.0656]
[1737109855430,4.6312,215.98,215.92,3.0656]
[1737109855636,4.6312,215.98,215.93,4.6322]
[1737109856142,1.5565,216.12,215.92,3.0656]
[1737109856336,4.6316,215.96,215.92,6.1624]
[1737109856536,1.5565,216.12,215.92,6.1624]
[1737109856738,1.4325,216.1,215.92,6.1624]
[1737109857041,10.6898,216.1,215.92,6.1624]
[1737109857429,4.6316,215.96,215.93,4.6322]
[1737109858132,4.6316,215.96,215.92,1.53]
[1737109858329,4.6316,215.96,215.92,6.1623]
[1737109860032,4.6316,215.96,215.92,4.6323]
[1737109861230,4.6313,215.98,215.93,4.6322]
[1737109861543,4.74,216.09,215.93,4.6322]
[1737109862237,4.74,216.09,215.94,4.632]
[1737109862441,4.6313,215.98,215.94,4.632]
[1737109863836,4.74,216.09,215.88,4.74]
[1737109864044,4.6305,216.02,215.98,4.6311]
[1737109864842,1.5565,216.12,215.97,4.74]
[1737109865441,1.5565,216.12,215.98,4.3766]
[1737109865643,4.6288,216.09,215.98,4.3766]
[1737109866333,1.5565,216.12,215.98,4.3766]
[1737109866535,4.6292,216.08,215.98,4.3766]
[1737109866740,1.5565,216.12,216.01,4.6305]
[1737109867240,1.5565,216.12,215.98,4.3766]
[1737109867241,4.6292,216.08,216.02,4.6302]
[1737109871143,1.5328,216.18,215.98,4.3766]
[1737109871541,4.6286,216.1,216.04,4.6297]
[1737109872143,4.6286,216.1,216.05,4.6296]
[1737109873446,4.6282,216.12,216.07,4.6292]
[1737109873846,4.628,216.13,216.08,4.629]
[1737109874249,1.5328,216.18,216.08,4.629]
[1737109874440,4.628,216.13,216.08,4.629]
[1737109875949,4.6282,216.12,216.08,4.629]
[1737109876846,2.932,216.22,216.06,4.76]
[1737109877147,2.932,216.22,216.07,4.3706]
[1737109877652,4.6271,216.17,216.13,4.6278]
[1737109881044,4.6271,216.17,216.12,4.6281]
[1737109887362,4.6271,216.17,216.13,4.6279]
[1737109889462,4.626,216.23,216.18,4.6268]
[1737109889765,86.66,216.29,216.15,4.74]
[1737109889967,86.66,216.29,216.16,9.2702]
[1737109891461,4.6255,216.25,216.21,4.6262]
[1737109891660,2.995,216.34,216.16,9.2702]
[1737109891860,5.06149778,216.35,216.16,9.2702]
[1737109893068,160.039182,216.45,216.16,9.2702]
[1737109893262,160.039182,216.45,216.17,3.82875777]
[1737109893566,160.039182,216.45,216.18,3.82875777]
[1737109893765,160.039182,216.48,216.19,3.82875777]
[1737109894063,160.039182,216.48,216.17,3.82875777]
[1737109894267,160.039182,216.48,216.18,3.81251298]
[1737109894468,4.74,216.51,216.19,3.81251298]
[1737109894666,4.74,216.51,216.17,3.81251298]
[1737109894866,4.74,216.51,216.18,3.81251298]
[1737109895166,18.64,216.51,216.17,3.81251298]
[1737109895560,13.9,216.51,216.16,9.2702]
[1737109895768,4.74,216.42,216.16,13.08271298]
[1737109895966,4.74,216.42,216.16,9.2702]
[1737109896863,5.05945491,216.47,216.16,9.2702]
[1737109897068,89.6017,216.43,216.16,9.2702]
[1737109897671,89.6017,216.43,216.16,13.08271298]
[1737109897871,89.6017,216.43,216.16,9.2702]
[1737109898265,89.6017,216.43,216.17,3.81251298]
[1737109898570,89.6017,216.43,216.16,9.2702]
[1737109903271,89.6017,216.43,216.16,204.2702]
[1737109903474,89.6017,216.43,216.17,3.81251298]
[1737109904470,89.6017,216.43,216.17,3.78896869]
[1737109905375,4.6226,216.39,216.18,9.2535]
[1737109905576,4.6226,216.39,216.17,3.78896869]
[1737109905770,4.6226,216.39,216.34,4.6235]
[1737109905974,4.6226,216.39,216.29,4.74]
[1737109906472,4.6226,216.39,216.33,4.6236]
[1737109908975,89.6017,216.43,216.33,4.6236]
[1737109909170,4.6226,216.38,216.33,4.6236]
[1737109909372,89.6017,216.43,216.35,4.6231]
[1737109909875,4.6222,216.4,216.35,4.6231]
[1737109910176,89.6017,216.43,216.36,4.623]
[1737109910773,4.622,216.41,216.36,4.623]
[1737109912679,4.622,216.41,216.29,4.74]
[1737109912979,4.622,216.41,216.37,4.6227]
[1737109913380,89.6017,216.43,216.29,4.74]
[1737109913681,94.2234,216.43,216.29,4.74]
[1737109914581,4.6218,216.42,216.38,4.6225]
[1737109916780,86.64,216.43,216.38,4.6225]
[1737109916984,4.622,216.41,216.38,4.6225]
[1737109917985,4.6223,216.4,216.36,4.6229]
[1737109921880,4.6224,216.39,216.36,4.6229]
[1737109922380,3.0246,216.42,216.37,4.6226]
[1737109922585,4.622,216.41,216.37,4.6226]
[1737109923382,4.6223,216.4,216.37,4.6226]
[1737109924484,3.0246,216.42,216.39,4.6222]
[1737109924485,7.6464,216.42,216.39,4.6222]
[1737109924685,3.0246,216.42,216.29,4.74]
[1737109925181,4.622,216.41,216.29,4.74]
[1737109925586,4.622,216.41,216.33,4.6236]
[1737109925787,4.622,216.41,216.29,4.74]
[1737109925986,4.622,216.41,216.3,3.79675193]
[1737109926182,4.622,216.41,216.36,4.6229]
[1737109927682,4.622,216.41,216.3,3.80072613]
[1737109927985,4.622,216.41,216.37,4.6228]
[1737109931289,4.6218,216.42,216.34,4.6234]
[1737109931493,4.6218,216.42,216.29,4.74]
[1737109931790,4.6218,216.42,216.3,3.80895049]
[1737109931990,4.622,216.41,216.37,4.6226]
[1737109932987,1.5121,216.46,216.37,4.6226]
[1737109933291,1.5121,216.46,216.3,9.2487]
[1737109933491,3.0336,216.48,216.31,3.81610355]
[1737109933691,3.0336,216.48,216.32,3.81610355]
[1737109933894,4.6207,216.47,216.41,4.6218]
[1737109934090,161.486582,216.52,216.38,4.72]
[1737109934388,166.106282,216.52,216.42,4.6216]
[1737109934587,161.486582,216.52,216.38,4.72]
[1737109934794,1.4474,216.52,216.39,3.81835886]
[1737109934993,4.621,216.46,216.4,8.44045886]
[1737109935288,1.4474,216.52,216.38,4.72]
[1737109935490,1.4474,216.52,216.39,3.82201691]
[1737109935695,1.4474,216.52,216.4,3.82201691]
[1737109935891,1.4474,216.52,216.38,4.72]
[1737109936092,1.4474,216.52,216.39,3.82211833]
[1737109936291,1.4474,216.52,216.4,3.82211833]
[1737109936595,1.4474,216.52,216.34,4.72]
[1737109936896,4.6207,216.47,216.4,4.622]
[1737109937193,1.4474,216.52,216.4,4.622]
[1737109937590,4.6213,216.44,216.4,4.622]
[1737109937797,4.6213,216.44,216.41,4.622]
[1737109938791,4.6213,216.44,216.34,4.72]
[1737109938990,4.6213,216.44,216.39,4.6222]
[1737109939590,4.6213,216.44,216.34,4.72]
[1737109939591,1.4474,216.52,216.34,4.72]
[1737109939794,4.6207,216.47,216.43,4.6215]
[1737109940094,1.4474,216.52,216.34,4.72]
[1737109940289,1.4474,216.52,216.35,3.82435795]
[1737109940491,1.4474,216.52,216.36,3.82435795]
[1737109940693,1.4474,216.52,216.37,3.82435795]
[1737109940894,4.6205,216.48,216.38,3.82435795]
[1737109941194,4.6205,216.48,216.39,3.82435795]
[1737109941394,4.6205,216.48,216.4,3.82435795]
[1737109941692,4.6205,216.48,216.35,4.3744]
[1737109941693,4.6205,216.48,216.41,3.82435795]
[1737109941893,4.6205,216.48,216.35,4.3744]
[1737109942083,4.6205,216.48,216.36,3.82085548]
[1737109942289,4.6205,216.48,216.42,4.6216]
[1737109942894,1.4474,216.52,216.35,4.3744]
[1737109943092,5.02955133,216.54,216.36,3.81998061]
[1737109943291,5.02955133,216.54,216.37,3.81998061]
[1737109943489,5.02955133,216.54,216.38,3.81998061]
[1737109943686,4.6195,216.53,216.47,4.6205]
[1737109943890,5.02955133,216.54,216.47,4.6205]
[1737109944087,5.02955133,216.54,216.43,4.7]
[1737109944686,4.6207,216.47,216.43,4.7]
[1737109944896,5.02955133,216.54,216.43,4.7]
[1737109945596,4.621,216.46,216.43,4.7]
[1737109946495,4.6218,216.42,216.37,4.6228]
[1737109946895,193.6272,216.52,216.33,4.7]
[1737109947097,193.6272,216.51,216.34,3.82103203]
[1737109947296,193.6272,216.51,216.32,4.7]
[1737109947493,4.6222,216.41,216.35,4.623]
[1737109947998,5.02955133,216.54,216.25,4.5231]
[1737109947999,193.6272,216.5,216.25,4.5231]
[1737109948195,4.6224,216.39,216.26,8.52202415]
[1737109948395,4.6224,216.39,216.27,3.82202415]
[1737109948596,4.6224,216.39,216.32,4.6237]
[1737109948799,4.6224,216.39,216.33,3.82202415]
[1737109949100,4.6224,216.39,216.3,4.7]
[1737109949299,4.6221,216.41,216.31,3.82232818]
[1737109949598,193.6272,216.49,216.32,3.82232818]
[1737109949802,1.5049,216.48,216.33,3.82232818]
[1737109950001,1.5049,216.48,216.34,3.82260146]
[1737109950296,2.9007,216.47,216.3,4.7]
[1737109950499,2.9007,216.47,216.31,3.82308088]
[1737109950690,2.9007,216.47,216.32,3.82308088]
[1737109950894,2.9007,216.47,216.34,4.6234]
[1737109950895,4.6224,216.4,216.34,4.6234]
[1737109951495,4.6224,216.39,216.34,4.6234]
[1737109953002,193.6272,216.45,216.25,4.5231]
[1737109953202,1.4779,216.38,216.26,3.82640572]
[1737109953396,1.4779,216.38,216.27,3.82640572]
[1737109953700,4.6239,216.32,216.28,3.82640572]
[1737109953901,4.6239,216.32,216.27,4.6249]
[1737109955494,4.6239,216.32,216.26,4.6251]
[1737109955696,4.6241,216.31,216.27,3.82496627]
[1737109955893,1.4779,216.38,216.2,4.6264]
[1737109956098,196.7145,216.37,216.21,3.82634659]
[1737109956404,193.6272,216.35,216.16,7.7377]
[1737109956598,193.6272,216.35,216.17,3.82555725]
[1737109956803,193.6272,216.33,216.16,3.0377]
[1737109957097,198.3272,216.32,216.16,1.5194]
[1737109957409,4.6269,216.18,216.13,4.6277]
[1737109957605,4.6269,216.18,216.14,3.82363607]
[1737109957803,193.6272,216.28,216.12,4.7]
[1737109958102,4.5356,216.27,216.12,4.7]
[1737109958306,193.6272,216.26,216.12,4.7]
[1737109959802,193.6272,216.26,216.1,7.6663]
[1737109960203,4.6274,216.16,216.1,7.6663]
[1737109961007,4.6275,216.15,216.1,7.6663]
[1737109961909,4.6278,216.14,216.1,1.5194]
[1737109963301,193.6272,216.25,216.1,1.5194]
[1737109963505,4.6275,216.15,216.1,1.5194]
[1737109963705,193.6272,216.25,216.08,1.5659]
[1737109964106,4.6282,216.12,216.06,9.3294]
[1737109964309,193.6272,216.24,216.06,9.3294]
[1737109964505,4.6284,216.11,216.05,4.72]
[1737109964712,193.6272,216.22,216.03,9.3499]
[1737109965113,193.6272,216.22,216.04,4.6299]
[1737109965811,4.6287,216.1,216.04,4.6299]
[1737109967215,193.6272,216.21,216.03,4.72]
[1737109967419,193.6272,216.19,216.03,4.72]
[1737109967608,193.6272,216.19,216.0,6.253]
[1737109967813,4.4466,216.18,216.0,6.253]
[1737109968112,4.6294,216.07,216.01,4.6305]
[1737109970309,4.6294,216.07,216.0,6.253]
[1737109970515,1.5216,216.18,216.0,6.253]
[1737109971307,4.6282,216.12,216.06,4.6293]
[1737109971512,1.5216,216.18,216.06,4.6293]
[1737109971815,1.5216,216.18,216.0,6.253]
[1737109972009,4.6287,216.1,216.03,4.6299]
[1737109972208,1.5216,216.18,216.0,6.253]
[1737109972814,1.5216,216.18,216.02,4.6303]
[1737109973217,1.5216,216.18,216.0,6.253]
[1737109973412,4.629,216.09,216.03,4.63]
[1737109974508,4.6288,216.1,216.0,1.553]
[1737109974709,1.5216,216.18,216.0,1.553]
[1737109976722,1.5216,216.18,216.05,4.6295]
[1737109977424,4.6286,216.1,216.05,4.6295]
[1737109977922,4.6286,216.1,216.06,4.6294]
[1737109982328,4.6288,216.09,216.06,4.6294]
[1737109982631,4.6288,216.09,216.0,1.553]
[1737109983428,1.5216,216.18,216.0,1.553]
[1737109984532,195.1219,216.21,216.0,1.553]
[1737109984729,1.4716,216.22,216.0,5.33475735]
[1737109984929,1.463,216.25,216.01,13.04275735]
[1737109985131,193.6272,216.28,216.01,3.78175735]
[1737109985327,4.6262,216.22,216.02,13.04235735]
[1737109985528,4.6262,216.22,216.02,9.2606]
[1737109985728,4.6263,216.21,216.15,4.6273]
[1737109986136,193.6272,216.28,216.13,4.72]
[1737109986335,193.6272,216.28,216.14,4.6276]
[1737109986528,193.6272,216.28,216.13,4.72]
[1737109986836,4.6275,216.16,216.13,4.72]
[1737109987032,4.6275,216.16,216.07,4.72]
[1737109987536,4.6275,216.16,216.1,4.6285]
[1737109988737,4.6274,216.16,216.1,4.6285]
[1737109989638,193.6272,216.27,216.07,4.72]
[1737109989939,193.6272,216.27,216.08,1.5461]
[1737109990134,193.6272,216.27,216.08,3.0045]
[1737109990331,193.6272,216.27,216.09,1.5176]
[1737109990532,4.6264,216.21,216.15,4.6274]
[1737109992040,4.6265,216.2,216.15,4.6274]
[1737109993640,4.6261,216.22,216.17,4.627]
[1737109994445,4.6255,216.25,216.09,1.5176]
[1737109994639,1.463,216.32,216.1,3.81312495]
[1737109994838,1.463,216.32,216.11,3.81312495]
[1737109995041,4.6254,216.25,216.19,4.6265]
[1737109995238,1.463,216.32,216.16,4.72]
[1737109995439,1.463,216.32,216.17,13.05265325]
[1737109995636,4.6246,216.29,216.18,3.81425325]
[1737109995836,4.6246,216.29,216.17,9.2384]
[1737109995837,4.6246,216.29,216.19,3.81425325]
[1737109996042,4.6243,216.3,216.17,9.2384]
[1737109996242,4.6243,216.3,216.18,3.81383078]
[1737109996439,4.6243,216.3,216.19,3.81383078]
[1737109996640,1.4783,216.35,216.25,4.6253]
[1737109996848,4.6239,216.32,216.17,9.2384]
[1737109997139,1.4783,216.35,216.18,3.81593932]
[1737109997344,1.5271,216.36,216.28,4.6247]
[1737109997947,4.6237,216.33,216.28,4.6247]
[1737109998149,1.5271,216.36,216.29,4.6245]
[1737109998346,86.54,216.38,216.29,4.6245]
[1737109998838,4.6235,216.34,216.29,4.6245]
[1737110000048,4.6237,216.33,216.29,4.6245]
[1737110000937,4.6245,216.29,216.18,3.8250926]
[1737110001138,86.54,216.38,216.19,8.5450926]
[1737110001345,86.54,216.38,216.2,3.8250926]
[1737110001541,4.6243,216.31,216.24,4.6254]
[1737110001736,86.54,216.38,216.21,4.72]
[1737110001940,4.6237,216.33,216.24,4.6256]
[1737110002137,86.54,216.38,216.24,4.6256]
[1737110002849,86.54,216.38,216.17,4.5184]
[1737110002850,86.54,216.38,216.22,4.6258]
[1737110003243,4.6249,216.28,216.19,4.72]
[1737110003442,86.54,216.38,216.19,4.72]